bitfinex-derivatives/quotes_BNBF0:USTF0_20250116
["timestamp","ask_amount","ask_price","bid_price","bid_amount"]
[1737055138956,1.05075553,713.74,712.62,2.269]
[1737055139860,1.05075553,713.7,712.62,2.269]
[1737055140956,1.05075553,713.69,712.62,2.269]
[1737055141959,1.05075553,713.68,712.62,2.269]
[1737055143053,2.13690882,714.52,712.62,2.269]
[1737055143054,1.05075553,713.71,712.62,2.269]
[1737055143254,1.05075553,713.71,712.62,3.166]
[1737055145159,1.05075553,713.68,712.62,3.166]
[1737055146260,1.25597906,714.37,712.62,3.166]
[1737055146261,1.05075553,713.61,712.62,3.166]
[1737055147361,1.05075553,713.56,712.62,3.166]
[1737055149461,1.05075553,713.53,712.62,3.166]
[1737055152163,1.05075553,713.49,712.63,1.05078887]
[1737055152959,1.05075553,713.49,712.62,3.19378887]
[1737055153563,1.05075553,713.49,712.62,4.65278887]
[1737055154668,1.05075553,713.6,712.62,3.602]
[1737055155058,1.05075553,713.44,712.62,3.602]
[1737055156865,1.05075553,713.43,712.62,3.602]
[1737055157769,1.05075553,713.46,712.62,3.602]
[1737055158563,1.05075553,713.4,712.62,3.602]
[1737055159772,1.05075553,713.41,712.62,3.602]
[1737055161865,1.05075553,713.44,712.62,3.602]
[1737055162873,2.13690882,714.09,712.62,3.602]
[1737055162874,1.05075553,713.47,712.62,3.602]
[1737055163973,1.05075553,713.49,712.62,3.602]
[1737055164875,1.05075553,713.53,712.62,3.602]
[1737055165471,4.77171748,714.48,712.62,3.602]
[1737055165672,4.77171748,716.1,712.62,3.602]
[1737055165871,4.77171748,716.09,712.62,3.602]
[1737055166075,4.77171748,716.08,712.62,3.602]
[1737055166374,4.77171748,716.07,712.62,3.602]
[1737055166575,4.77171748,716.06,712.62,3.602]
[1737055166776,4.77171748,716.05,712.62,3.602]
[1737055166978,4.77171748,716.04,712.62,3.602]
[1737055167173,1.86372992,716.03,712.62,3.602]
[1737055167370,1.86372992,716.02,712.62,3.602]
[1737055167575,1.86372992,716.01,712.62,3.602]
[1737055167774,1.86372992,716.0,712.62,3.602]
[1737055168077,1.86372992,715.99,712.62,3.602]
[1737055168277,1.86372992,715.98,712.62,3.602]
[1737055168472,1.86372992,715.97,712.62,3.602]
[1737055168672,1.04816731,713.91,712.62,3.602]
[1737055168875,1.04816731,713.62,712.62,3.602]
[1737055172281,1.04816731,713.65,712.62,3.602]
[1737055174478,1.04816731,713.67,712.62,3.602]
[1737055175587,1.04816731,713.66,712.62,3.602]
[1737055176585,1.04816731,713.63,712.62,3.602]
[1737055177588,1.04816731,713.64,712.62,3.602]
[1737055178992,1.04816731,713.63,712.62,3.602]
[1737055179888,1.04816731,713.62,712.62,3.602]
[1737055180687,1.04816731,713.61,712.62,3.602]
[1737055181392,1.04816731,713.57,712.62,3.602]
[1737055183593,1.04816731,713.54,712.62,3.602]
[1737055185388,1.04816731,713.56,712.62,3.602]
[1737055186191,1.04816731,713.52,712.62,3.602]
[1737055187195,2.14000826,714.22,712.62,3.602]
[1737055187196,1.04816731,713.49,712.62,3.602]
[1737055188700,1.04816731,713.51,712.62,3.602]
[1737055189895,1.04816731,713.48,712.62,3.602]
[1737055191095,1.04816731,713.46,712.62,3.602]
[1737055192096,1.04816731,713.42,712.62,3.602]
[1737055194399,1.04816731,713.39,712.62,3.602]
[1737055198400,1.04816731,713.36,712.62,3.602]
[1737055199592,1.04816731,713.35,712.62,3.602]
[1737055200897,1.04816731,713.31,712.62,3.602]
[1737055202002,1.04816731,713.3,712.62,3.602]
[1737055202803,1.04816731,713.29,712.62,3.602]
[1737055203605,1.04816731,713.27,712.62,3.602]
[1737055204803,1.04816731,713.31,712.62,3.602]
[1737055206000,1.04816731,713.3,712.62,3.602]
[1737055208508,1.04816731,713.29,712.62,3.602]
[1737055209607,1.04816731,713.31,712.62,3.602]
[1737055211009,1.04816731,713.3,712.62,3.602]
[1737055211804,1.04816731,713.29,712.62,3.602]
[1737055213910,1.04816731,713.25,712.62,3.602]
[1737055215108,1.04816731,713.24,712.62,3.602]
[1737055216214,1.04816731,713.25,712.62,3.602]
[1737055217007,1.04816731,713.24,712.62,3.602]
[1737055218015,1.25780077,713.7,712.62,3.602]
[1737055218016,1.04816731,713.25,712.62,3.602]
[1737055218918,1.04816731,713.33,712.62,3.602]
[1737055220918,1.04816731,713.35,712.62,3.602]
[1737055225023,1.04816731,713.36,712.62,3.602]
[1737055226423,1.04816731,713.37,712.62,3.602]
[1737055227221,1.04816731,713.36,712.62,3.602]
[1737055228018,1.04816731,713.37,712.62,3.602]
[1737055230425,1.04816731,713.39,712.62,3.602]
[1737055231428,2.14000826,714.29,712.62,3.602]
[1737055231429,1.04816731,713.4,712.62,3.602]
[1737055232022,1.32851494,713.4,712.62,3.602]
[1737055233329,1.04816731,713.39,712.62,3.602]
[1737055234333,1.04816731,713.38,712.62,3.602]
[1737055237027,1.04816731,713.39,712.62,3.602]
[1737055238330,1.04816731,713.28,712.62,3.602]
[1737055240934,1.04816731,713.31,712.62,3.602]
[1737055241931,1.04816731,713.29,712.62,3.602]
[1737055243035,1.04816731,713.27,712.62,3.602]
[1737055243931,1.04816731,713.26,712.62,3.602]
[1737055245035,1.04816731,713.25,712.62,3.602]
[1737055245838,1.04816731,713.38,712.62,3.602]
[1737055246737,1.04816731,713.37,712.62,3.602]
[1737055248641,1.04816731,713.34,712.62,3.602]
[1737055250641,1.04816731,713.36,712.62,3.602]
[1737055251441,0.28034763,713.4,712.62,3.602]
[1737055251442,1.04816731,713.33,712.62,3.602]
[1737055252846,1.04816731,713.31,712.62,3.602]
[1737055255648,1.04816731,713.29,712.62,3.602]
[1737055256548,1.04816731,713.18,712.62,3.602]
[1737055257753,1.04816731,713.19,712.62,3.602]
[1737055259053,1.04816731,713.15,712.62,3.602]
[1737055259954,1.04816731,713.11,712.62,3.602]
[1737055261057,1.04816731,713.1,712.62,3.602]
[1737055262258,1.04816731,713.07,712.62,3.602]
[1737055263156,1.04816731,713.08,712.62,3.602]
[1737055263858,1.04816731,713.09,712.62,3.602]
[1737055264850,1.04816731,713.08,712.62,3.602]
[1737055265954,1.04816731,713.09,712.62,3.602]
[1737055266957,1.04816731,713.08,712.62,3.602]
[1737055267856,1.04816731,713.1,712.62,3.602]
[1737055269757,1.04816731,713.08,712.62,3.602]
[1737055276661,1.04816731,713.09,712.62,3.602]
[1737055277955,1.04816731,713.08,712.62,3.602]
[1737055279259,1.04816731,713.07,712.62,3.602]
[1737055280364,1.04816731,713.1,712.62,3.602]
[1737055281563,1.04816731,713.09,712.62,3.602]
[1737055282765,1.04816731,713.07,712.62,3.602]
[1737055283668,1.04816731,713.08,712.62,3.602]
[1737055286467,1.04816731,713.19,712.62,3.602]
[1737055287370,1.04816731,713.18,712.62,3.602]
[1737055288467,1.04816731,713.19,712.62,3.602]
[1737055289270,1.04816731,713.18,712.62,3.602]
[1737055290470,1.04816731,713.19,712.62,3.602]
[1737055291771,1.04816731,713.18,712.62,3.602]
[1737055293774,1.04816731,713.17,712.62,3.602]
[1737055295872,1.04816731,713.14,712.62,3.602]
[1737055301374,1.04816731,713.17,712.62,3.602]
[1737055302279,1.04816731,713.18,712.62,3.602]
[1737055305884,1.04816731,713.2,712.62,3.602]
[1737055307186,1.04816731,713.25,712.62,3.602]
[1737055308286,1.04816731,713.27,712.62,3.602]
[1737055310189,1.04816731,713.25,712.62,3.602]
[1737055312490,1.04816731,713.26,712.62,3.602]
[1737055315085,1.04816731,713.17,712.62,3.602]
[1737055316489,1.04816731,713.2,712.62,3.602]
[1737055320296,1.04816731,713.22,712.62,3.602]
[1737055321495,0.28034763,713.4,712.62,3.602]
[1737055321496,1.04816731,713.29,712.62,3.602]
[1737055324104,1.04816731,713.26,712.62,3.602]
[1737055325003,1.04816731,713.25,712.62,3.602]
[1737055325804,1.04816731,713.26,712.62,3.602]
[1737055327105,1.04816731,713.27,712.62,3.602]
[1737055328102,1.04816731,713.33,712.62,3.602]
[1737055330507,1.04816731,713.35,712.62,3.602]
[1737055331406,1.04816731,713.34,712.62,3.602]
[1737055332710,1.04816731,713.33,712.62,3.602]
[1737055334707,1.04816731,713.32,712.62,3.602]
[1737055335607,0.28034763,713.4,712.62,3.602]
[1737055335608,1.04816731,713.3,712.62,3.602]
[1737055336708,1.04816731,713.24,712.62,3.602]
[1737055337609,0.28034763,713.4,712.62,3.602]
[1737055337610,1.04816731,713.25,712.62,3.602]
[1737055339412,1.04816731,713.19,712.62,3.602]
[1737055340511,1.04816731,713.18,712.62,3.602]
[1737055341312,1.04816731,713.19,712.62,3.602]
[1737055342305,1.04816731,713.14,712.62,3.602]
[1737055343515,1.04816731,713.13,712.62,3.602]
[1737055344314,1.04816731,713.06,712.62,3.602]
[1737055345516,1.04816731,713.18,712.62,3.602]
[1737055346420,1.04816731,713.13,712.62,3.602]
[1737055346917,0.2804577,713.12,712.62,3.602]
[1737055347622,1.04816731,713.04,712.62,3.602]
[1737055348617,1.04816731,713.09,712.62,3.602]
[1737055349821,0.2804577,713.12,712.62,3.602]
[1737055376641,1.04816731,713.09,712.62,3.602]
[1737055377839,1.04816731,713.06,712.62,3.602]
[1737055378737,1.04816731,713.01,712.62,3.602]
[1737055396152,0.2804577,713.12,712.62,3.602]
[1737055398155,1.32862501,713.12,712.62,3.602]
[1737055400050,0.2804577,713.12,712.62,3.602]
[1737055406672,1.04816731,713.07,712.62,3.602]
[1737055407964,1.04816731,713.04,712.62,3.602]
[1737055408976,1.04816731,713.02,712.62,3.602]
[1737055409981,1.04816731,713.0,712.62,3.602]
[1737055410278,0.38895502,713.0,712.62,3.602]
[1737055410976,0.2804577,713.12,712.62,3.602]
[1737055424283,1.04816731,713.06,712.62,3.602]
[1737055428084,1.04816731,713.07,712.62,3.602]
[1737055429282,1.04816731,713.03,712.62,3.602]
[1737055430483,1.04816731,713.06,712.62,3.602]
[1737055432780,1.04816731,713.07,712.62,3.602]
[1737055433583,0.7100338,713.11,712.62,3.602]
[1737055433584,1.04816731,713.06,712.62,3.602]
[1737055434683,1.04816731,713.01,712.62,3.602]
[1737055435781,1.04816731,713.02,712.62,3.602]
[1737055436482,1.04816731,713.08,712.62,3.602]
[1737055437886,1.04816731,713.07,712.62,3.602]
[1737055438883,1.04816731,713.08,712.62,3.602]
[1737055439890,0.28047343,713.08,712.62,3.602]
[1737055441388,1.04816731,713.06,712.62,3.602]
[1737055442396,0.28047343,713.08,712.62,3.602]
[1737055445393,1.32864074,713.08,712.62,3.602]
[1737055446689,0.28047343,713.08,712.62,3.602]
[1737055448791,1.04816731,713.03,712.62,3.602]
[1737055450095,1.04816731,713.01,712.62,3.602]
[1737055450498,0.2805049,713.0,712.62,3.602]
[1737055452201,1.32867221,713.0,712.62,3.602]
[1737055454501,1.04816731,712.98,712.62,3.602]
[1737055455805,1.04816731,712.97,712.62,3.602]
[1737055456704,0.2805049,713.0,712.62,3.602]
[1737055465508,1.04816731,712.98,712.62,3.602]
[1737055466512,1.04816731,712.97,712.62,3.602]
[1737055467812,0.2805049,713.0,712.62,3.602]
[1737055469212,1.32867221,713.0,712.62,3.602]
[1737055470212,0.2805049,713.0,712.62,3.602]
[1737055472616,1.32867221,713.0,712.62,3.602]
[1737055473510,0.2805049,713.0,712.62,3.602]
[1737055478218,1.32867221,713.0,712.62,3.602]
[1737055479323,0.2805049,713.0,712.62,3.602]
[1737055480724,1.32867221,713.0,712.62,3.602]
[1737055481626,1.04816731,712.96,712.62,3.602]
[1737055482922,0.2805049,713.0,712.62,3.602]
[1737055513450,1.04816731,713.34,712.62,3.602]
[1737055513954,1.04816731,713.36,712.62,3.602]
[1737055515058,1.04816731,713.44,712.62,3.602]
[1737055515360,0.28033584,713.43,712.62,3.602]
[1737055516361,1.04816731,713.33,712.62,3.602]
[1737055517860,1.75760379,713.42,712.62,3.602]
[1737055517861,1.04816731,713.31,712.62,3.602]
[1737055521465,1.04816731,713.34,712.62,3.602]
[1737055523368,1.04816731,713.33,712.62,3.602]
[1737055524169,1.04816731,713.34,712.62,3.602]
[1737055526369,1.04816731,713.37,712.62,3.602]
[1737055527574,1.32850315,713.43,712.62,3.602]
[1737055528876,0.28033584,713.43,712.62,3.602]
[1737055531079,1.04934623,713.35,712.62,3.602]
[1737055532177,1.04934623,713.37,712.62,3.602]
[1737055533179,0.28033584,713.43,712.62,3.602]
[1737055533180,1.04934623,713.36,712.62,3.602]
[1737055534383,1.04934623,713.35,712.62,3.602]
[1737055536984,1.04934623,713.36,712.62,3.602]
[1737055539080,1.04934623,713.34,712.62,3.602]
[1737055540385,1.04934623,713.35,712.62,3.602]
[1737055541886,0.28033584,713.43,712.62,3.602]
[1737055544990,1.32968207,713.43,712.62,3.602]
[1737055546191,0.28033584,713.43,712.62,3.602]
[1737055547293,1.04934623,713.42,712.62,3.602]
[1737055548192,1.04934623,713.41,712.62,3.602]
[1737055548989,1.04934623,713.4,712.62,3.602]
[1737055549994,0.28033584,713.43,712.62,3.602]
[1737055549995,1.04934623,713.41,712.62,3.602]
[1737055551597,1.04934623,713.34,712.62,3.602]
[1737055552798,1.04934623,713.37,712.62,3.602]
[1737055555398,1.32968207,713.43,712.62,3.602]
[1737055556191,1.04934623,713.42,712.62,3.602]
[1737055557791,0.28033584,713.43,712.62,3.602]
[1737055559397,1.04934623,713.42,712.62,3.602]
[1737055560695,1.04934623,713.36,712.62,3.602]
[1737055561596,0.28033584,713.43,712.62,3.602]
[1737055561597,1.04934623,713.35,712.62,3.602]
[1737055562595,1.04934623,713.31,712.62,3.602]
[1737055563500,1.04934623,713.3,712.62,3.602]
[1737055564900,1.04934623,713.23,712.62,3.602]
[1737055565894,0.28033584,713.43,712.62,3.602]
[1737055565895,1.04934623,713.25,712.62,3.602]
[1737055567305,1.04934623,713.21,712.62,3.602]
[1737055570204,1.04934623,713.22,712.62,3.602]
[1737055571505,1.04934623,713.21,712.62,3.602]
[1737055572706,1.04934623,713.25,712.62,3.602]
[1737055573809,1.04934623,713.27,712.62,3.602]
[1737055575210,1.04934623,713.34,712.62,3.602]
[1737055576308,1.04934623,713.4,712.62,3.602]
[1737055577310,2.14000826,714.11,712.62,3.602]
[1737055577311,1.04934623,713.61,712.62,3.602]
[1737055578709,1.04934623,713.65,712.62,3.602]
[1737055579605,1.04934623,713.68,712.62,3.602]
[1737055580306,1.04934623,713.69,712.62,3.602]
[1737055581412,1.04934623,713.71,712.62,3.602]
[1737055582013,2.14000826,714.44,712.62,3.602]
[1737055582014,1.04934623,713.73,712.62,3.602]
[1737055583114,1.04934623,713.74,712.62,3.602]
[1737055583814,1.04934623,713.76,712.62,3.602]
[1737055584919,1.04934623,713.77,712.62,3.602]
[1737055587217,1.04934623,713.61,712.62,3.602]
[1737055588418,1.04934623,713.65,712.62,3.602]
[1737055593819,1.04934623,713.67,712.62,3.602]
[1737055594723,1.04934623,713.66,712.62,3.602]
[1737055595627,1.04934623,713.65,712.62,3.602]
[1737055598123,1.04934623,713.62,712.62,3.602]
[1737055599229,1.04934623,713.61,712.62,3.602]
[1737055600225,1.04934623,713.63,712.62,3.602]
[1737055602727,1.04934623,713.62,712.62,3.602]
[1737055602928,1.04934623,713.62,712.63,0.25773318]
[1737055603432,1.04934623,713.62,712.45,1.04719128]
[1737055603732,1.04934623,713.62,712.46,0.25773287]
[1737055603931,1.04934623,713.63,712.52,1.04719128]
[1737055604231,1.04934623,713.63,712.53,0.25773287]
[1737055604532,1.04934623,713.63,712.54,0.25773372]
[1737055604725,1.04934623,713.63,712.55,0.25773372]
[1737055604926,1.04934623,713.63,712.56,0.25773372]
[1737055605129,1.04934623,713.63,712.57,0.25773372]
[1737055605326,1.04934623,713.63,712.58,0.25773372]
[1737055605529,1.04934623,713.61,712.59,0.25773372]
[1737055605725,1.04934623,713.61,712.6,0.25773372]
[1737055605931,1.04934623,713.61,712.54,1.04719128]
[1737055606129,1.04934623,713.61,712.55,0.25772822]
[1737055606332,2.14000826,714.16,712.55,0.25772822]
[1737055606333,1.04934623,713.64,712.55,0.25772822]
[1737055606735,1.04934623,713.64,712.54,1.04719128]
[1737055607236,1.04934623,713.64,712.52,3.919]
[1737055608833,1.04934623,713.63,712.52,3.919]
[1737055610039,1.25839701,714.19,712.52,3.919]
[1737055610040,1.04934623,713.6,712.53,1.04719128]
[1737055611036,1.04934623,713.61,712.53,1.04719128]
[1737055612140,1.04934623,713.57,712.53,1.04719128]
[1737055613049,1.04934623,713.57,712.54,0.25773203]
[1737055613543,1.04934623,713.57,712.54,1.30492331]
[1737055613740,1.04934623,713.57,712.54,1.04719128]
[1737055614344,1.04934623,713.57,712.55,0.25772941]
[1737055614643,2.14000826,714.23,712.52,3.919]
[1737055614644,1.04934623,713.58,712.56,1.04719128]
[1737055615749,1.04934623,713.59,712.57,1.04719128]
[1737055616547,1.04934623,713.59,712.58,0.25772928]
[1737055616744,1.04866417,713.92,712.58,0.25772928]
[1737055616745,1.04934623,713.6,712.58,0.25772928]
[1737055617554,1.04934623,713.6,712.58,1.064]
[1737055618048,1.04816731,713.83,712.58,1.064]
[1737055618049,1.04934623,713.57,712.59,1.04719128]
[1737055619150,1.04934623,713.62,712.58,1.064]
[1737055619544,1.04934623,713.62,712.58,2.185]
[1737055620145,1.04934623,713.6,712.58,2.185]
[1737055622853,1.04934623,713.61,712.58,2.185]
[1737055626055,1.04934623,713.6,712.58,2.185]
[1737055627456,1.04934623,713.6,712.59,0.25773181]
[1737055628457,1.04934623,713.6,712.6,0.25773136]
[1737055628657,1.04934623,713.53,712.62,1.04719128]
[1737055628851,1.04934623,713.53,712.63,0.25773136]
[1737055629757,1.04934623,713.5,712.65,1.04719128]
[1737055630955,1.04934623,713.49,712.65,1.04719128]
[1737055631455,1.04934623,713.49,712.65,1.96419128]
[1737055632259,1.04934623,713.48,712.67,1.04719128]
[1737055633054,1.04934623,713.47,712.67,1.04719128]
[1737055633254,1.04934623,713.47,712.69,1.04719128]
[1737055634357,1.04934623,713.47,712.65,0.917]
[1737055634358,1.04934623,713.46,712.7,1.04719128]
[1737055635463,1.04934623,713.45,712.7,1.04719128]
[1737055636464,1.04934623,713.44,712.69,1.04719128]
[1737055637463,1.04934623,713.43,712.7,1.04719128]
[1737055638263,1.04934623,713.43,712.71,1.04719128]
[1737055639361,1.04934623,713.44,712.72,1.04719128]
[1737055640266,2.91209413,714.25,712.65,0.917]
[1737055640462,0.28002184,714.23,712.65,0.917]
[1737055641766,0.28002184,714.23,712.65,2.119]
[1737055642268,1.05163082,713.43,712.71,1.04835254]
[1737055643063,2.14707959,713.96,712.65,2.119]
[1737055643064,1.05163082,713.41,712.69,1.04835254]
[1737055644360,1.05163082,713.5,712.65,1.202]
[1737055644763,1.05163082,713.5,712.65,2.497]
[1737055647569,1.05163082,713.49,712.65,2.497]
[1737055647773,1.05163082,713.49,712.65,3.396]
[1737055648364,1.05163082,713.5,712.65,3.396]
[1737055651773,1.05163082,713.49,712.65,3.396]
[1737055652773,1.05163082,713.5,712.65,3.396]
[1737055653678,2.14707959,714.14,712.65,3.396]
[1737055653679,1.05163082,713.47,712.65,3.396]
[1737055654774,1.05163082,713.44,712.68,1.04835254]
[1737055655674,1.05163082,713.44,712.67,1.04835254]
[1737055656875,1.05163082,713.44,712.65,3.396]
[1737055656876,1.05163082,713.44,712.68,1.04835254]
[1737055658976,1.05163082,713.45,712.68,1.04835254]
[1737055659776,1.05163082,713.46,712.68,1.04835254]
[1737055661179,1.05163082,713.47,712.67,1.04835254]
[1737055662180,1.05163082,713.48,712.67,1.04835254]
[1737055663371,1.05163082,713.46,712.69,1.04835254]
[1737055665578,1.05163082,713.43,712.69,1.04835254]
[1737055666683,1.05163082,713.43,712.68,1.04835254]
[1737055668186,2.14707959,713.98,712.68,1.04835254]
[1737055668187,1.05163082,713.45,712.68,1.04835254]
[1737055668980,1.05163082,713.45,712.68,3.19835254]
[1737055669385,1.05163082,713.45,712.69,1.04835254]
[1737055670285,1.05163082,713.45,712.72,1.04835254]
[1737055671484,1.05163082,713.44,712.71,1.04835254]
[1737055672488,1.05163082,713.43,712.71,1.04835254]
[1737055673390,1.05163082,713.43,712.7,1.04835254]
[1737055674492,1.05163082,713.43,712.71,1.04835254]
[1737055676293,1.05163082,713.53,712.68,2.15]
[1737055677996,1.05163082,713.53,712.68,3.742]
[1737055678195,1.05163082,713.54,712.68,3.742]
[1737055678997,1.05163082,713.53,712.68,3.742]
[1737055680090,1.05163082,713.89,712.68,3.742]
[1737055680091,1.05163082,713.54,712.68,3.742]
[1737055681590,1.05163082,713.89,712.68,3.742]
[1737055681591,1.05163082,713.53,712.68,3.742]
[1737055685796,1.05163082,713.51,712.68,3.742]
[1737055686705,2.14707959,714.2,712.68,3.742]
[1737055686706,1.05163082,713.41,712.68,3.742]
[1737055687908,1.05163082,713.43,712.68,3.742]
[1737055691508,1.05163082,713.57,712.68,3.742]
[1737055692509,1.05163082,713.56,712.68,3.742]
[1737055693912,1.05163082,713.55,712.68,3.742]
[1737055695009,1.05163082,713.56,712.68,3.742]
[1737055696110,1.05163082,713.57,712.68,3.742]
[1737055697511,1.05163082,713.6,712.68,3.742]
[1737055698309,1.05163082,713.58,712.68,3.742]
[1737055699416,1.05163082,713.59,712.68,3.742]
[1737055701520,1.05163082,713.52,712.68,3.742]
[1737055705824,1.05163082,713.5,712.68,3.742]
[1737055707026,1.05163082,713.45,712.68,3.742]
[1737055708222,1.05163082,713.41,712.68,3.742]
[1737055709330,1.05163082,713.43,712.68,3.742]
[1737055713627,1.05163082,713.42,712.68,3.742]
[1737055714424,2.14707959,713.95,712.68,3.742]
[1737055714425,1.05163082,713.4,712.68,3.742]
[1737055715522,1.05163082,713.41,712.68,3.742]
[1737055716424,1.05163082,713.43,712.68,3.742]
[1737055717430,1.05163082,713.42,712.68,3.742]
[1737055719728,1.05163082,713.4,712.68,3.742]
[1737055720930,1.05163082,713.37,712.68,3.742]
[1737055723031,1.05163082,713.38,712.68,3.742]
[1737055723835,1.05163082,713.39,712.68,3.742]
[1737055724936,1.05163082,713.4,712.68,3.742]
[1737055726338,1.05163082,713.38,712.68,3.742]
[1737055728140,1.05163082,713.39,712.68,3.742]
[1737055729343,1.05163082,713.64,712.68,3.742]
[1737055730340,1.05163082,713.68,712.68,3.742]
[1737055731542,1.05163082,713.69,712.68,3.742]
[1737055734243,1.05163082,713.68,712.68,3.742]
[1737055736248,1.05163082,713.7,712.68,3.742]
[1737055737244,1.05163082,713.71,712.68,3.742]
[1737055738750,1.05163082,713.55,712.68,3.742]
[1737055742154,1.05163082,713.45,712.68,3.742]
[1737055744457,1.05163082,713.44,712.68,3.742]
[1737055747657,2.14707959,713.97,712.68,3.742]
[1737055747658,1.05163082,713.47,712.68,3.742]
[1737055754662,1.05163082,713.49,712.68,3.742]
[1737055755559,1.05163082,713.54,712.68,3.742]
[1737055756464,1.05163082,713.55,712.68,3.742]
[1737055757963,1.05163082,713.54,712.68,3.742]
[1737055759272,1.05163082,713.53,712.68,3.742]
[1737055761566,1.05163082,713.52,712.68,3.742]
[1737055762571,1.05163082,713.61,712.68,3.742]
[1737055763674,1.05163082,713.59,712.68,3.742]
[1737055765577,1.05163082,713.54,712.68,3.742]
[1737055766977,1.05163082,713.53,712.68,3.742]
[1737055768078,1.05163082,713.54,712.68,3.742]
[1737055770176,1.05163082,713.55,712.68,3.742]
[1737055770976,1.05163082,713.54,712.68,3.742]
[1737055772282,0.28019445,713.79,712.68,3.742]
[1737055772283,1.05163082,713.4,712.68,3.742]
[1737055774582,1.05163082,713.39,712.68,3.742]
[1737055778284,1.05163082,713.4,712.68,3.742]
[1737055782489,1.05163082,713.46,712.68,3.742]
[1737055784386,1.05163082,713.47,712.68,3.742]
[1737055785189,1.05163082,713.46,712.68,3.742]
[1737055786189,1.05163082,713.45,712.68,3.742]
[1737055787387,1.05163082,713.44,712.68,3.742]
[1737055790591,1.05163082,713.48,712.68,3.742]
[1737055793088,1.05163082,713.47,712.68,3.742]
[1737055794099,1.05163082,713.65,712.68,3.742]
[1737055795195,1.05163082,713.66,712.68,3.742]
[1737055796002,1.05163082,713.65,712.68,3.742]
[1737055797404,1.05163082,713.62,712.68,3.742]
[1737055801805,1.05163082,713.63,712.68,3.742]
[1737055804407,1.05163082,713.46,712.68,3.742]
[1737055805908,1.05163082,713.48,712.68,3.742]
[1737055807305,1.05163082,713.44,712.68,3.742]
[1737055808506,1.05163082,713.46,712.68,3.742]
[1737055809804,1.05163082,713.47,712.68,3.742]
[1737055813603,1.05163082,713.47,712.68,3.742]
[1737055814206,1.05163082,713.42,712.68,3.742]
[1737055815608,1.05163082,713.47,712.68,3.742]
[1737055817741,1.05163082,713.49,712.68,3.742]
[1737055818729,1.05163082,713.46,712.68,3.742]
[1737055820318,1.05163082,713.47,712.68,3.742]
[1737055821620,1.05163082,713.37,712.68,3.742]
[1737055822624,0.70871756,713.78,712.68,3.742]
[1737055822625,1.05163082,713.38,712.68,3.742]
[1737055824551,1.05163082,713.41,712.68,3.742]
[1737055825347,1.05163082,713.45,712.68,3.742]
[1737055826948,1.05163082,713.44,712.68,3.742]
[1737055828142,1.05163082,713.45,712.68,3.742]
[1737055829631,1.05163082,713.44,712.68,3.742]
[1737055830931,1.05163082,713.7,712.68,3.742]
[1737055830932,1.05163082,713.42,712.68,3.742]
[1737055831732,1.05163082,713.41,712.68,3.742]
[1737055833033,1.05163082,713.39,712.68,3.742]
[1737055833929,1.05163082,713.38,712.68,3.742]
[1737055835036,1.05163082,713.42,712.68,3.742]
[1737055837432,0.70871756,713.78,712.68,3.742]
[1737055837433,1.05163082,713.39,712.68,3.742]
[1737055839836,1.05163082,713.37,712.68,3.742]
[1737055840837,1.05163082,713.36,712.68,3.742]
[1737055842933,1.05163082,713.35,712.68,3.742]
[1737055844339,1.05163082,713.61,712.68,3.742]
[1737055844340,1.05163082,713.36,712.68,3.742]
[1737055845440,1.05163082,713.31,712.68,3.742]
[1737055846841,1.05163082,713.38,712.68,3.742]
[1737055848541,1.05163082,713.39,712.68,3.742]
[1737055849644,1.05163082,713.22,712.68,3.742]
[1737055850843,1.05163082,713.46,712.68,3.742]
[1737055850844,1.05163082,713.18,712.68,3.742]